Cogmind - Beta 10.1 @@@ ROGUE MODE // 2020.09.30 @ 17:10:06 Player: Cracklepappy Result: Destroyed by 12-ASH with Ripper Performance ------------- Evolutions (1) 500 Regions Visited (6) 1200 Robots Destroyed (98) 490 Value Destroyed (1877) 1877 Prototype IDs (43) 860 Alien Tech Used (0) 0 Bonus (319) 319 TOTAL SCORE: 5246 Bonus ------- High Alert Combat Kills 19 Aligned with FarCom 300 Cogmind --------- Core Integrity 0/400 Matter 40/300 Energy 310/310 System Corruption 0% Temperature Cool (0) Movement Treading (225) Ox3 Location -8/Mines Parts ------- > --- POWER (1) -------- Heavy Deuterium Engine > --- PROPULSION (2) --- Light Treads Armored Treads > --- UTILITY (4) ------ High-capacity Storage Unit High-capacity Storage Unit High-capacity Storage Unit High-capacity Storage Unit > --- WEAPON (2) ------- Minigun > --- INVENTORY (36) --- Reinforced Fission Core Light Treads Light Treads Improved Treads Combat Antigrav System VTOL Module Flying Fortress v7 Experimental Heat Sink Medium Storage Unit Medium Storage Unit Large Storage Unit Large Storage Unit High-capacity Storage Unit Gravity Neutralizing Apparatus Experimental Sensor Array Advanced Signal Interpreter Improved Terrain Scan Processor Advanced Core Analyzer System Purifier High-powered Tractor Beam Advanced Recalibrator AS-neutralizer No. 17b AWS/EX-DEC XL Autogun Array 8R-AWN's Boregun Mini Grenade Launcher Mini Grenade Launcher Mining Laser Peak State ------------ > --- POWER ------------ Heavy Deuterium Engine > --- PROPULSION ------- Armored Treads Armored Treads > --- UTILITY ---------- High-capacity Storage Unit High-capacity Storage Unit Experimental Targeting Computer System Purifier > --- WEAPON ----------- AWS/EX-DEC > --- INVENTORY -------- Makeshift Power Source Reinforced Fission Core Light Treads Light Treads Improved Treads Armored Treads Combat Antigrav System Experimental Heat Sink Small Matter Pod Gravity Neutralizing Apparatus Advanced Core Analyzer Advanced Recalibrator AS-neutralizer No. 17b Minigun Minigun 8R-AWN's Boregun Mini Grenade Launcher Mini Grenade Launcher Mining Laser Deploy-a-Sentry [Rating: 56] Favorites ----------- Power Ion Engine Engine Ion Engine Power Core Light Nuclear Core Propulsion Light Treads Treads Light Treads Wheel Wheel Utility High-capacity Storage Unit Device System Purifier Storage High-capacity Storage Unit Processor Experimental Targeting Computer Protection Heavy Armor Plating Weapon Improved Assault Rifle Energy Gun AWS/EX-DEC Ballistic Gun Improved Assault Rifle Ballistic Cannon Assault Cannon Launcher Mini Grenade Launcher Build | -11 -10 -10 -9 -9 -9 -8 ------- Run | Scr Mat Min Mat Min Exi Min Slots Evolved 2 | . . . 2 . . . Power . | . . . . . . . Propulsion . | . . . . . . . Utility 2 | . . . 2 . . . Weapon . | . . . . . . . Parts Attached 81 | 7 11 5 25 . 31 2 Power 6 | 1 1 1 1 . 2 . Engine 5 | 1 1 1 1 . 1 . Core 1 | . . . . . 1 . Reactor . | . . . . . . . Propulsion 20 | 2 4 1 7 . 6 . Treads 18 | 1 3 1 7 . 6 . Leg . | . . . . . . . Wheel 2 | 1 1 . . . . . Hover . | . . . . . . . Flight . | . . . . . . . Utility 27 | 2 3 . 10 . 12 . Device 4 | . . . . . 4 . Storage 17 | 2 3 . 7 . 5 . Processor 1 | . . . . . 1 . Hackware . | . . . . . . . Protection 5 | . . . 3 . 2 . Artifact . | . . . . . . . Weapon 28 | 2 3 3 7 . 11 2 Energy Gun 2 | 1 . . . . 1 . Energy Cannon . | . . . . . . . Ballistic Gun 20 | 1 3 2 4 . 8 2 Ballistic Cannon 2 | . . . 2 . . . Launcher 4 | . . 1 1 . 2 . Special Weapon . | . . . . . . . Impact Weapon . | . . . . . . . Slashing Weapon . | . . . . . . . Piercing Weapon . | . . . . . . . Special Melee Weapon . | . . . . . . . Unidentified Prototypes 9 | . . . 1 . 8 . Parts Lost 18 | . 2 2 5 . 8 1 Power 2 | . . . 1 . 1 . Propulsion 4 | . 1 1 1 . 1 . Utility 3 | . . . 1 . 2 . Weapon 9 | . 1 1 2 . 4 1 Highest Loss Streak 6 | . 1 2 1 . 6 1 Average Slot Usage (%) 92 | . 98 99 96 88 84 88 Engine 8 | . 13 14 9 . 3 11 Treads 20 | . 13 18 21 22 21 22 Wheel 3 | . 13 9 . . . . Storage 33 | . 28 28 39 44 30 44 Processor 1 | . . . . . 3 . Protection 2 | . . . 2 . 4 . Energy Gun 1 | . . . . . 3 3 Ballistic Gun 16 | . 27 25 15 22 9 7 Ballistic Cannon 1 | . . . 5 . . . Launcher 2 | . . 2 . . 5 . Naked Turns . | . . . . . . . Heaviest Build 149 | 16 40 41 143 134 149 149 Greatest Support 40 | 10 20 40 40 40 40 40 Greatest Overweight (x) 11 | 1 11 4 3 3 3 3 Average Overweight (x) 2 | . 2 2 2 3 2 3 Largest Inventory Capacity 36 | 8 16 16 36 36 36 36 Average Capacity 24 | 6 15 16 29 36 26 36 Most Carried 36 | 8 16 16 36 36 36 36 Average Carried 23 | 4 14 15 28 36 23 35 Final Capacity 36 | 8 16 16 36 36 36 36 Final Carried 36 | 8 16 14 36 36 36 35 Class Distribution -------------------- 68% | Hauler-Mutant 31% | Mutant Dominant Class ---------------- Mutant | -10/Materials Mutant | -10/Mines Hauler-Mutant | -9/Materials Hauler-Mutant | -9/Mines Hauler-Mutant | -9/Exiles Hauler-Mutant | -8/Mines Resources | -11 -10 -10 -9 -9 -9 -8 ----------- Run | Scr Mat Min Mat Min Exi Min Matter Collected 2612 | 277 329 138 1226 . 642 . Remotely . | . . . . . . . Salvage Created 3242 | 106 574 455 1706 . 401 . Parts 227 | 11 45 18 99 . 54 . Haulers Intercepted 5 | . 1 . 4 . . . Recyclers Shooed 10 | 1 2 1 6 . . . Parts Field Recycled . | . . . . . . . Retrieved Matter . | . . . . . . . Parts Self-Destructed . | . . . . . . . Prevented . | . . . . . . . Kills | -11 -10 -10 -9 -9 -9 -8 ------- Run | Scr Mat Min Mat Min Exi Min Combat Hostiles Destroyed 54 | . 10 1 37 . 6 . Guns 37 | . 10 1 25 . 1 . Cannons 8 | . . . 8 . . . AOE 9 | . . . 4 . 5 . Classes Destroyed 14 | 2 4 1 4 . 3 . Worker 4 | . . . 4 . . . Builder 2 | . 2 . . . . . Tunneler 2 | 2 . . . . . . Hauler 5 | . 1 . 4 . . . Recycler 11 | 1 . 6 4 . . . Mechanic 1 | . . . 1 . . . Turret 1 | . . . . . 1 . Watcher 7 | . 3 . 4 . . . Swarmer 12 | . . . 12 . . . Grunt 26 | . 10 . 16 . . . Sentry 9 | . . . 9 . . . Demolisher 1 | . . 1 . . . . Zionite 8 | . . . . . 8 . Assembled 5 | . . . . . 5 . Best Kill Streak 10 | 2 3 2 9 . 10 . Combat Bots Only 8 | . 2 1 8 . 5 . Max Kills in Single Turn 3 | 1 1 1 2 . 3 . Gunslinging . | . . . . . . . Exploded 3 | . . . 1 . 3 . Melee . | . . . . . . . Uniques/NPCs Destroyed 4 | . . . . . 4 . 8R-AWN (-9/Exiles) EX-BIN (-9/Exiles) EX-HEX (-9/Exiles) EX-DEC (-9/Exiles) Combat | -11 -10 -10 -9 -9 -9 -8 -------- Run | Scr Mat Min Mat Min Exi Min Damage Taken 4748 | . 431 363 1304 . 1829 821 Core 601 | . 53 117 178 . 110 143 Absorbed by Shields . | . . . . . . . Core Remaining (%) 66 | 100 . 32 . . . . Volleys Fired 301 | 7 58 25 143 . 62 6 Largest 2 | 2 2 2 2 . 2 2 Hottest 70 | 70 40 40 67 . 60 50 Shots Fired 572 | 14 115 40 272 . 123 8 Gun 497 | 14 115 40 202 . 118 8 Cannon 60 | . . . 60 . . . Launcher 15 | . . . 10 . 5 . Special . | . . . . . . . Kinetic 550 | 7 115 40 262 . 118 8 Thermal 7 | 7 . . . . . . Explosive 15 | . . . 10 . 5 . Electromagnetic . | . . . . . . . Robot Hit Streak 40 | 6 8 10 21 . 40 2 Robot Miss Streak 6 | 1 6 2 4 . 1 1 Penetration Max . | . . . . . . . Secondary Targets 3 | . 1 . 2 . . . Max Gunslinging Chain 1 | . 1 . 1 . . . Shots Hit Robots 405 | 11 74 29 187 . 99 5 Core Hits 181 | 5 32 15 82 1 44 2 Critical Hits 7 | . 3 . 1 . 3 . Critical Kills 2 | . . . 1 . 1 . Critical Parts Destroyed 4 | . 3 . . . 1 . Melee Attacks . | . . . . . . . Impact . | . . . . . . . Slashing . | . . . . . . . Piercing . | . . . . . . . Sneak Attacks . | . . . . . . . Combat Hostiles . | . . . . . . . Follow-up Attacks . | . . . . . . . Damage Inflicted 6507 | 100 794 339 3429 42 1689 114 Guns 4876 | 100 794 339 2036 . 1493 114 Cannons 951 | . . . 951 . . . Explosions 595 | . . . 399 . 196 . Melee . | . . . . . . . Ramming 85 | . . . 43 42 . . Kinetic 5765 | 38 794 339 2987 . 1493 114 Thermal 62 | 62 . . . . . . Explosive 595 | . . . 399 . 196 . Electromagnetic . | . . . . . . . Impact . | . . . . . . . Slashing . | . . . . . . . Piercing . | . . . . . . . Highest Corruption 2 | . 2 2 . . . . Average Corruption 2 | . 2 2 . . . . Corruption Purged . | . . . . . . . Effects 17 | . 3 14 . . . . Message Errors 3 | . . 3 . . . . Heat Flow Errors 4 | . 1 3 . . . . Energy Discharges 3 | . 1 2 . . . . Data Loss (minor) 4 | . . 4 . . . . Targeting Errors 3 | . 1 2 . . . . Overload Shots . | . . . . . . . Overflow Damage 9 | . . . 9 . . . Projectiles 8 | . . . 8 . . . Explosions 1 | . . . 1 . . . Melee . | . . . . . . . Knockbacks 8 | . . . 7 1 . . Impact 1 | . . . . 1 . . Kinetic 6 | . . . 6 . . . Secondary 1 | . . . 1 . . . Self-Inflicted Damage 24 | . . . 24 . . . Shots 1 | . . . 1 . . . Rammed 6 | . . . 3 3 . . Targets Rammed 6 | . . . 3 3 . . Kicked . | . . . . . . . Crushed . | . . . . . . . Highest Temperature 240 | 60 240 229 27 . 24 8 Average Temperature 24 | 27 38 101 9 . 9 5 Received Heat Transfer 678 | . 237 . 441 . . . Siege Activations . | . . . . . . . Robots Corrupted . | . . . . . . . Combat Hostiles . | . . . . . . . Parts Fried . | . . . . . . . Impact Corruptions . | . . . . . . . Robots Melted . | . . . . . . . Combat Hostiles . | . . . . . . . Parts Melted . | . . . . . . . Heat Transferred 185 | 185 . . . . . . Parts Sabotaged . | . . . . . . . Parts Stolen . | . . . . . . . Parts Stripped . | . . . . . . . Power Chain Reactions . | . . . . . . . Missiles Intercepted . | . . . . . . . Alert | -11 -10 -10 -9 -9 -9 -8 ------- Run | Scr Mat Min Mat Min Exi Min Peak Influence 465 | 15 171 66 465 167 . . Initial 167 | . 9 66 7 167 . . Average 130 | 5 54 23 225 122 . . Maximum Alert Level 2 | . . . 2 . . . Low Security (%) 72 | 100 100 100 40 100 . 100 Level 1 22 | . . . 50 . . . Level 2 4 | . . . 9 . . . Level 3 . | . . . . . . . Level 4 . | . . . . . . . Level 5 . | . . . . . . . High Security . | . . . . . . . Max Security . | . . . . . . . Squads Dispatched 7 | . 2 1 4 . . . Investigation 6 | . 2 1 3 . . . Extermination . | . . . . . . . Reinforcement 1 | . . . 1 . . . Assault . | . . . . . . . Garrison . | . . . . . . . Intercept . | . . . . . . . Construction Impeded . | . . . . . . . Haulers Reinforced . | . . . . . . . Stealth | -11 -10 -10 -9 -9 -9 -8 --------- Run | Scr Mat Min Mat Min Exi Min Distress Signals 6 | . 1 1 4 . . . Communications Jammed . | . . . . . . . Distress Signals . | . . . . . . . Times Spotted 123 | . 19 2 65 . 36 1 Peak Tracking Total 10 | . 3 2 10 . 9 1 Tactical Retreats 11 | . 1 . 6 . 4 . Traps | -11 -10 -10 -9 -9 -9 -8 ------- Run | Scr Mat Min Mat Min Exi Min Traps Triggered 7 | . 3 . 4 . . . Indirectly . | . . . . . . . Trap Hack Attempts . | . . . . . . . Triggered . | . . . . . . . Disarmed . | . . . . . . . Reprogrammed . | . . . . . . . Reused . | . . . . . . . Traps Extracted . | . . . . . . . Installed . | . . . . . . . Triggered . | . . . . . . . Exploded 3 | . . . . . 3 . Machines | -11 -10 -10 -9 -9 -9 -8 ---------- Run | Scr Mat Min Mat Min Exi Min Machines Disabled 15 | . . . 5 . 10 . Max in Single Turn 1 | . . . 1 . 1 . Machines Sabotaged . | . . . . . . . Garrisons Compromised . | . . . . . . . Overloaded Fab Kills . | . . . . . . . Fab Network Shutdowns . | . . . . . . . Hacking | -11 -10 -10 -9 -9 -9 -8 --------- Run | Scr Mat Min Mat Min Exi Min Machines Accessed 24 | . 9 1 12 . 2 . Terminals 16 | . 7 . 9 . . . Fabricators . | . . . . . . . Repair Stations 1 | . . . 1 . . . Recycling Units 3 | . 2 . 1 . . . Scanalyzers 1 | . . . 1 . . . Garrison Access . | . . . . . . . Total Hacks 68 | . 29 1 36 . 2 . Successful 42 | . 20 1 19 . 2 . Failed 25 | . 8 . 17 . . . Catastrophic 4 | . 2 . 2 . . . Database Lockouts 1 | . 1 . . . . . Manual 37 | . 17 . 19 . 1 . Terminals 54 | . 26 . 28 . . . Fabricators . | . . . . . . . Repair Stations 3 | . . . 3 . . . Recycling Units 4 | . 3 . 1 . . . Scanalyzers 4 | . . . 4 . . . Garrison Access . | . . . . . . . Terminal Hacks 26 | . 14 1 9 . 2 . Record 1 | . . . . . 1 . Part Schematic 3 | . 2 . 1 . . . Prototype ID Bank 8 | . 3 . 5 . . . Open Door 1 | . . 1 . . . . Terminal Index 1 | . 1 . . . . . Unreport Threat 2 | . 1 . 1 . . . Locate Traps 2 | . 2 . . . . . Hauler Manifests 3 | . 2 . 1 . . . Registered Prototypes 1 | . 1 . . . . . Zone Layout 3 | . 2 . 1 . . . EX-Prototype ID Bank 1 | . . . . . 1 . Fabricator Hacks . | . . . . . . . Repair Station Hacks 2 | . . . 2 . . . Scan Component 1 | . . . 1 . . . Repair 1 | . . . 1 . . . Recycling Unit Hacks . | . . . . . . . Scanalyzer 4 | . . . 4 . . . Insert Component 2 | . . . 2 . . . Analyze 2 | . . . 2 . . . Garrison Access Hacks . | . . . . . . . Unauthorized Hacks 10 | . 6 . 4 . . . Terminals 7 | . 4 . 3 . . . Track 5 | . 3 . 2 . . . Operators 2 | . 1 . 1 . . . Fabricators . | . . . . . . . Repair Stations . | . . . . . . . Recycling Units 3 | . 2 . 1 . . . Tunnel 3 | . 2 . 1 . . . Scanalyzers . | . . . . . . . Garrison Access . | . . . . . . . Data Cores Recovered . | . . . . . . . Used . | . . . . . . . Hacking Detections 16 | . 6 . 10 . . . Full Trace Events 1 | . . . 1 . . . Feedback Events . | . . . . . . . Feedback Blocked . | . . . . . . . Robot Schematics Acquired . | . . . . . . . Robots Built . | . . . . . . . Matter . | . . . . . . . Time . | . . . . . . . Total Robot Build Rating . | . . . . . . . Part Schematics Acquired 4 | . 1 . 3 . . . Parts Built . | . . . . . . . Matter . | . . . . . . . Time . | . . . . . . . Total Part Build Rating . | . . . . . . . Parts Repaired 1 | . . . 1 . . . Time 80 | . . . 80 . . . Parts Recycled . | . . . . . . . Recycled Matter . | . . . . . . . Retrieved Matter . | . . . . . . . Retrieved Components . | . . . . . . . Parts Scanalyzed 2 | . . . 2 . . . Part Schematics Acquired 2 | . . . 2 . . . Parts Damaged . | . . . . . . . Bothacking | -11 -10 -10 -9 -9 -9 -8 ------------ Run | Scr Mat Min Mat Min Exi Min Used RIF Installer . | . . . . . . . Robots Hacked . | . . . . . . . Non-combat . | . . . . . . . Combat . | . . . . . . . Robot Hacks Applied . | . . . . . . . Relay Couplers Released . | . . . . . . . Robots Rewired . | . . . . . . . Allies Hacked . | . . . . . . . Hacks Repelled . | . . . . . . . Allies | -11 -10 -10 -9 -9 -9 -8 -------- Run | Scr Mat Min Mat Min Exi Min Total Allies . | . . . . . . . Largest Group . | . . . . . . . Highest-Rated Group . | . . . . . . . Highest-Rated Ally . | . . . . . . . Total Orders . | . . . . . . . Ally Attacks 13 | . . . . . . 13 Total Damage 688 | . . . . . . 688 Kills . | . . . . . . . Allies Corrupted . | . . . . . . . Allies Melted . | . . . . . . . Turrets Deployed 1 | . . . . . . 1 Intel | -11 -10 -10 -9 -9 -9 -8 ------- Run | Scr Mat Min Mat Min Exi Min Robot Analysis Total . | . . . . . . . Derelict Logs Recovered 1 | . . 1 . . . . Drone Launches . | . . . . . . . Drone Recoveries . | . . . . . . . Exploration | -11 -10 -10 -9 -9 -9 -8 ------------- Run | Scr Mat Min Mat Min Exi Min Turns Passed 9330 | 86 1168 1485 2814 546 3176 55 Spaces Moved 4067 | 56 688 651 1049 245 1361 17 Core 3 | 2 1 . . . . . Treads 2940 | . 1 267 1049 245 1361 17 Legs . | . . . . . . . Wheels 1124 | 54 686 384 . . . . Hover . | . . . . . . . Flight . | . . . . . . . Fastest Speed 50 | 50 90 110 180 220 190 225 Average Speed 178 | 85 108 141 200 220 210 225 Slowest Speed 600 | 90 600 180 220 220 230 225 Overloaded Moves . | . . . . . . . Propulsion Burnouts . | . . . . . . . Robots Hopped . | . . . . . . . Cave-ins Triggered . | . . . . . . . Exploration Rate (%) 61 | 4 95 98 80 50 92 13 Regions Visited 6 Branch Regions 4 Pre-discovered Areas 4 | . 2 . 1 . 1 . Known Exits Taken . | . . . . . . . Unknown Exits Taken 6 | 1 1 1 1 1 1 . Scrap Searched 4 | . . 1 . 3 . . Spaces Dug 1 | . . . 1 . . . Terrain Destroyed 59 | . . . 34 . 25 . Melee . | . . . . . . . Projectile 11 | . . . 11 . . . AOE 48 | . . . 23 . 25 . Terrain Rammed . | . . . . . . . Walls Destroyed . | . . . . . . . Machines Disabled . | . . . . . . . Actions | -11 -10 -10 -9 -9 -9 -8 --------- Run | Scr Mat Min Mat Min Exi Min Total 5624 | 79 1010 1180 1500 249 1578 28 Wait 958 | . 225 489 207 2 35 . Move 4061 | 55 687 650 1048 244 1360 17 Hop . | . . . . . . . Pick Up 122 | 10 18 5 47 . 41 1 Fast Attach 20 | 5 5 . 4 . 6 . Attach 29 | 2 3 2 10 . 10 2 Detach 4 | . . . 1 . 3 . Swap 32 | . 3 3 11 . 15 . Drop 91 | . 11 6 26 . 46 2 Fire 301 | 7 58 25 143 . 62 6 Melee . | . . . . . . . Ram . | . . . . . . . Kick . | . . . . . . . Crush 6 | . . . 3 3 . . Escape Stasis . | . . . . . . . Rewire . | . . . . . . . Trap . | . . . . . . . Miscellaneous . | . . . . . . . Route ------- -11/Scrapyard -10/Materials (discovered 4 exits: *Mat x3 / *Min) -10/Mines (discovered 2 exits: *Mat x2) -9/Materials (discovered 3 exits: [*Mat x2] / [*Min]) -9/Mines (discovered 3 exits: [*Mat] / *Exi / [*Zio]) -9/Exiles (discovered 2 exits: [*Min x2]) -8/Mines History --------- Turn | Location | Event 14 | -11/Scrapyard | Discovered new exit (range 16) 87 | -11/Scrapyard | Entered Materials 308 | -10/Materials | Build established: Mutant 465 | -10/Materials | Central database locked down 615 | -10/Materials | Discovered new exit (range 5) 992 | -10/Materials | Discovered new exit (range 13) 1194 | -10/Materials | Discovered new exit (range 13) 1194 | -10/Materials | Discovered new exit (range 21) 1255 | -10/Materials | Entered Mines 1263 | -10/Mines | Discovered new exit (range 11) 1283 | -10/Mines | Met a Derelict shopkeep closing up shop 1392 | -10/Mines | Found a damaged Exp. Sensor Array with a note attached 1397 | -10/Mines | Found Prototype Device 1415 | -10/Mines | Discovered new exit (range 11) 1418 | -10/Mines | Assembled infested the area 2224 | -10/Mines | Core integrity fell below 50% 2740 | -10/Mines | Entered Materials 2740 | -9/Materials | Evolved 2 slots: Utility x2 3175 | -9/Materials | Destroyed 8 combat bots 3264 | -9/Materials | Build established: Hauler-Mutant 3297 | -9/Materials | Identified Exp. Sensor Array 3325 | -9/Materials | Discovered new exit (range 10) 4099 | -9/Materials | Repaired Exp. Sensor Array 4180 | -9/Materials | Discovered new exit (range 4) 4552 | -9/Materials | Discovered new exit (range 15) 5554 | -9/Materials | Entered Mines 5574 | -9/Mines | Met a Derelict bent on vengeance 5700 | -9/Mines | Discovered new exit (range 10) 6018 | -9/Mines | Deemed a non-threat by the Exiles lab entrance 6021 | -9/Mines | Discovered new exit (range 5) 6041 | -9/Mines | A Derelict revealed a hidden shortcut to a safe place 6100 | -9/Mines | Entered Exiles 6162 | -9/Exiles | Met 8R-AWN 6202 | -9/Exiles | Met EX-HEX 6281 | -9/Exiles | Met EX-DEC 6461 | -9/Exiles | Discovered new exit (range 10) 6731 | -9/Exiles | Learned location of Zion (-7) 6995 | -9/Exiles | Met EX-BIN 7133 | -9/Exiles | Aligned with FarCom system 7135 | -9/Exiles | Given EX-Vault access code 7186 | -9/Exiles | Opened EX-Vault 7234 | -9/Exiles | Warned to stay clear of 0b10 Research branches 7279 | -9/Exiles | Attacked by the Exiles 7353 | -9/Exiles | Core integrity fell below 50% 7424 | -9/Exiles | Destroyed 8R-AWN 7433 | -9/Exiles | Found Prototype Ballistic Gun 7439 | -9/Exiles | Found Prototype Device 7443 | -9/Exiles | Identified AS-neutralizer No. 17b 7452 | -9/Exiles | Found Prototype Processor 7452 | -9/Exiles | Identified Exp. Targeting Computer 7456 | -9/Exiles | Identified 8R-AWN's Boregun 7611 | -9/Exiles | Discovered new exit (range 15) 7854 | -9/Exiles | Lost 6 parts (1p1n1u3w) 8086 | -9/Exiles | Destroyed EX-BIN 8110 | -9/Exiles | Destroyed EX-HEX 8183 | -9/Exiles | Destroyed EX-DEC 8223 | -9/Exiles | Found Prototype Energy Gun 8225 | -9/Exiles | Identified AWS/EX-DEC 8236 | -9/Exiles | Found Deploy-a-Sentry 8300 | -9/Exiles | Found Prototype Device 8300 | -9/Exiles | Identified System Purifier 8770 | -9/Exiles | Found XL Autogun Array 8777 | -9/Exiles | Found Flying Fortress v7 9276 | -9/Exiles | Stole three prototypes: Flying Fortress v7, XL Autogun Array, Deploy-a-Sentry 9276 | -9/Exiles | Entered Mines 9299 | -8/Mines | 12-ASH came to Exiles' defense 9301 | -8/Mines | Core integrity fell below 20% 9304 | -8/Mines | DAS Turret deployed 9331 | -8/Mines | Destroyed by 12-ASH with Ripper Last Messages --------------- 09304_ DAS Turret deployed. 09304_ 12-ASH knocked back. 09304_ K-01 Serf collects debris. 09305_ Acquired AWS/EX-DEC. 09305_ 12-ASH knocked back. 09309_ K-01 Serf collects debris. 09311_ 12-ASH knocked back. 09314_ K-01 Serf collects debris. 09316_ Destroyed Lgt. Antimatter Reactor. 09317_ 12-ASH knocked back. 09320_ K-01 Serf collects debris. 09320_ Minigun destroyed. 09323_ 12-ASH knocked back. 09325_ K-01 Serf collects debris. 09325_ Destroyed Adv. Reaction Control System. 09325_ 12-ASH knocked back. 09327_ Destroyed Prototype Leg. 09327_ Destroyed Prototype Ballistic Gun. 09327_ 12-ASH knocked back. 09328_ K-01 Serf collects debris. Map ----- +----------------------------------------------------+ | ?????????????????????????????????????????????? | | ?????????????????????????????????????????????? | | ?????????????????????????????????????????????? | | ?????????????????????????????????????????????? | | ?????????????????????????????????????????????? | | ?????????????????????????????????????????????? | | ?????????????????????????????????????????????? | | ?????????????????????????????????????????????? | | ?????????????????????????????????????????????? | | ?????????????????????????????????????????????? | | ?????????????##??????????????????????????????? | | ????????????## ??????????????????????????????? | | ????????????# ??????????????????????????????? | | ????????????# ??????????????????????????????? | | ????????????# ##????????????????????????????? | | ????????????# #????????????????????????????? | | ???????????## ????????????????????????????? | | ???????????# ????????????????????????????? | | ???????????# ????????????????????????????? | | ???????????# #????????????????????????????? | | ??????????## k #????????????????????????????? | | ???????#### ####?????????????????????????? | | ??????## ;;#####?????????????????????? | | ??????# ########??????????????? | | ??????# t # ###??????????? | | ?????# ;####@g #??????????? | | ????# ;##??# """ #??????????? | | ???# ##???# """ ## #??????????? | | ???# ?????# """ #??????????????? | | ???# ?????# #??????????????? | | ???## ?????# #??????????????? | | ????## ?????###########??????????????? | | ?????## ??????????????????????????????? | | ??????# ???????????????????????????????? | | ??????## ???????????????????????????????? | | ???????# ???????????????????????????????? | | ??????? ## ???????????????????????????????? | | ?????? ?#####???????????????????????????????? | | ?????? ??????????????????????????????????????? | | ????? ??????????????????????????????????????? | | ???? ???????????????????????????????????????? | | ???? ????????????????????????????????????????? | | ?????????????????????????????????????????????? | | ?????????????????????????????????????????????? | | ?????????????????????????????????????????????? | | ?????????????????????????????????????????????? | | ?????????????????????????????????????????????? | | ?????????????????????????????????????????????? | | ?????????????????????????????????????????????? | | ?????????????????????????????????????????????? | +----------------------------------------------------+ Best States ------------- Heat Dissipation 28 Energy Generation 18 Energy Capacity 310 Matter Stores 300 Matter Capacity 300 Sight Range 16 Terrain Scan Density 10 Additional Mass Support 12 Armor Coverage 600 Evasion (%) 44 Targeting Accuracy 12 Recoil Reduction 2 Item Schematics ----------------- Hcp. Storage Unit | -10/Materials | Hacked Exp. Sensor Array | -9/Materials | Scanalyzed Hvy. Armor Plating | -9/Materials | Scanalyzed Med. Storage Unit | -9/Materials | Hacked Robot Schematics ------------------ None Fabricated ------------ Nothing Alien Tech Used ----------------- None Achievements -------------- None Challenges ------------ None Game ------ Seed FireCloakingStorm Manual? 0 Play Time 00:56:49 Cumulative 190.5 hours Start 2020.09.30 @ 14:35:47 End 2020.09.30 @ 17:10:06 Sessions 1 Manual Loads 0 Difficulty Rogue Special Mode None Game No. 216 Rogue 216 Adventurer 0 Explorer 0 Win Type - Total 2 Types 2/0/0/0/0/0/0/0/0 Lore% 61 Gallery% 74 Achievement% 56 Wizard Run 0 Options --------- ASCII 0 Keyboard 0 Movement Numpad Keybinds 0 Fullscreen 2 Font 24/Smallcaps Map View 76x50 Tactical HUD 1 Map Filters NONE Filters NONE Steam 1 RUN: f1b11196-6b6d-41c9-b233-6da5f85b925f